[Event "December 5 Early 2023"]
[Site "https://www.chess.com"]
[Date "2023.12.05"]
[Round "6"]
[White "Kozak, Antoni"]
[Black "Gavrilov, Maxim"]
[Result "1-0"]
[Board "68"]
[TimeControl "180+1"]
[WhiteFideId "21832030"]
[BlackFideId "24271454"]
[WhiteElo "2708"]
[BlackElo "2542"]
[WhiteTeam "POL"]
[BlackTeam "RUS"]
[WhiteClock "0:01:46"]
[BlackClock "0:00:00"]

1. e4 {[%clk 0:03:00]}  c5 {[%clk 0:02:59]} 2. Nf3 {[%clk 0:03:00]}  d6 {[%clk 0:02:58]} 3. Nc3 {[%clk 0:03:00]}  Nf6 {[%clk 0:02:57]} 4. h3 {[%clk 0:03:01]}  a6 {[%clk 0:02:56]} 5. a4 {[%clk 0:03:00]}  g6 {[%clk 0:02:54]} 6. Bc4 {[%clk 0:03:00]}  Bg7 {[%clk 0:02:54]} 7. O-O {[%clk 0:03:00]}  O-O {[%clk 0:02:53]} 8. d3 {[%clk 0:03:00]}  Nc6 {[%clk 0:02:53]} 9. Re1 {[%clk 0:03:00]}  e6 {[%clk 0:02:45]} 10. Bf4 {[%clk 0:02:59]}  d5 {[%clk 0:02:43]} 11. Bb3 {[%clk 0:02:57]}  c4 {[%clk 0:02:18]} 12. dxc4 {[%clk 0:02:49]}  dxe4 {[%clk 0:02:18]} 13. Ng5 {[%clk 0:02:44]}  e5 {[%clk 0:02:07]} 14. Be3 {[%clk 0:02:44]}  Bf5 {[%clk 0:01:28]} 15. Bc5 {[%clk 0:02:41]}  Re8 {[%clk 0:01:13]} 16. g4 {[%clk 0:02:36]}  Nxg4 {[%clk 0:00:58]} 17. Qxd8 {[%clk 0:02:35]}  Raxd8 {[%clk 0:00:52]} 18. hxg4 {[%clk 0:02:35]}  Bxg4 {[%clk 0:00:52]} 19. Ngxe4 {[%clk 0:02:35]}  Nd4 {[%clk 0:00:50]} 20. Bxd4 {[%clk 0:02:29]}  exd4 {[%clk 0:00:51]} 21. Nd5 {[%clk 0:02:29]}  Kh8 {[%clk 0:00:29]} 22. Ng5 {[%clk 0:02:25]}  Rf8 {[%clk 0:00:18]} 23. Re7 {[%clk 0:02:08]}  Rd7 {[%clk 0:00:18]} 24. Rae1 {[%clk 0:02:04]}  h6 {[%clk 0:00:15]} 25. Rxd7 {[%clk 0:02:05]}  Bxd7 {[%clk 0:00:15]} 26. Re7 {[%clk 0:02:05]}  Be8 {[%clk 0:00:15]} 27. Ne4 {[%clk 0:01:59]}  f5 {[%clk 0:00:11]} 28. Nd6 {[%clk 0:01:57]}  Bc6 {[%clk 0:00:10]} 29. Nb4 {[%clk 0:01:54]}  Bf3 {[%clk 0:00:09]} 30. c5 {[%clk 0:01:54]}  f4 {[%clk 0:00:05]} 31. Nxb7 {[%clk 0:01:53]}  d3 {[%clk 0:00:05]} 32. Nxd3 {[%clk 0:01:51]}  g5 {[%clk 0:00:02]} 33. Nd6 {[%clk 0:01:50]}  g4 {[%clk 0:00:02]} 34. Ne5 {[%clk 0:01:46]}  Ba8 {[%clk 0:00:01]} 35. Ng6+ {[%clk 0:01:46]}  Kh7 {[%clk 0:00:00]} 36. Nxf8+ {[%clk 0:01:46]} 1-0

[Event "December 5 Early 2023"]
[Site "https://www.chess.com"]
[Date "2023.12.05"]
[Round "6"]
[White "Yelisieiev, Yevhenii"]
[Black "Williams, Simon K"]
[Result "1-0"]
[Board "69"]
[TimeControl "180+1"]
[WhiteFideId "14139642"]
[BlackFideId "404454"]
[WhiteElo "2543"]
[BlackElo "2707"]
[WhiteTeam "GER"]
[BlackTeam "ENG"]
[WhiteClock "0:00:51"]
[BlackClock "0:00:20"]

1. d4 {[%clk 0:03:00]}  e6 {[%clk 0:02:59]} 2. Nf3 {[%clk 0:03:01]}  f5 {[%clk 0:02:59]} 3. d5 {[%clk 0:03:01]}  exd5 {[%clk 0:02:54]} 4. Qxd5 {[%clk 0:03:01]}  d6 {[%clk 0:02:51]} 5. Ng5 {[%clk 0:03:00]}  Qe7 {[%clk 0:02:50]} 6. Nxh7 {[%clk 0:03:00]}  Rxh7 {[%clk 0:02:49]} 7. Qxg8 {[%clk 0:03:01]}  Rh4 {[%clk 0:02:48]} 8. Qb3 {[%clk 0:02:58]}  Nc6 {[%clk 0:02:46]} 9. c3 {[%clk 0:02:51]}  Ne5 {[%clk 0:02:21]} 10. Be3 {[%clk 0:02:36]}  f4 {[%clk 0:02:19]} 11. Bd4 {[%clk 0:02:29]}  Nd3+ {[%clk 0:02:12]} 12. Kd1 {[%clk 0:02:23]}  Nc5 {[%clk 0:01:58]} 13. Qc2 {[%clk 0:02:18]}  Qf7 {[%clk 0:01:47]} 14. Nd2 {[%clk 0:01:55]}  Bf5 {[%clk 0:01:46]} 15. Qc1 {[%clk 0:01:56]}  O-O-O {[%clk 0:01:43]} 16. Nf3 {[%clk 0:01:56]}  Rh5 {[%clk 0:01:25]} 17. h4 {[%clk 0:01:41]}  Ne4 {[%clk 0:01:20]} 18. Ke1 {[%clk 0:01:34]}  c5 {[%clk 0:01:19]} 19. Qxf4 {[%clk 0:01:34]}  g5 {[%clk 0:00:56]} 20. Nxg5 {[%clk 0:01:26]}  Nxg5 {[%clk 0:00:54]} 21. g4 {[%clk 0:01:21]}  Ne6 {[%clk 0:00:41]} 22. Qf3 {[%clk 0:01:11]}  cxd4 {[%clk 0:00:37]} 23. gxh5 {[%clk 0:01:06]}  Bh6 {[%clk 0:00:33]} 24. Bh3 {[%clk 0:00:59]}  Bxh3 {[%clk 0:00:30]} 25. Qxf7 {[%clk 0:00:55]}  Nf4 {[%clk 0:00:20]} 26. Rxh3 {[%clk 0:00:51]} 1-0

[Event "December 5 Early 2023"]
[Site "https://www.chess.com"]
[Date "2023.12.05"]
[Round "6"]
[White "Pakleza, Zbigniew"]
[Black "Silva Lucena, Cristian"]
[Result "0-1"]
[Board "71"]
[TimeControl "180+1"]
[WhiteFideId "1119290"]
[BlackFideId "2232588"]
[WhiteElo "2705"]
[BlackElo "2536"]
[WhiteTeam "POL"]
[BlackTeam "ESP"]
[WhiteClock "0:00:00"]
[BlackClock "0:00:16"]

1. d4 {[%clk 0:03:00]}  d5 {[%clk 0:02:57]} 2. Bf4 {[%clk 0:03:00]}  h5 {[%clk 0:02:55]} 3. h3 {[%clk 0:03:00]}  Bf5 {[%clk 0:02:53]} 4. c4 {[%clk 0:03:00]}  dxc4 {[%clk 0:02:51]} 5. Nc3 {[%clk 0:03:00]}  e6 {[%clk 0:02:50]} 6. e4 {[%clk 0:02:59]}  Bg6 {[%clk 0:02:51]} 7. Bxc4 {[%clk 0:02:58]}  Nd7 {[%clk 0:02:48]} 8. Nge2 {[%clk 0:02:53]}  c6 {[%clk 0:02:45]} 9. O-O {[%clk 0:02:50]}  Ngf6 {[%clk 0:02:46]} 10. Bh2 {[%clk 0:02:44]}  Nxe4 {[%clk 0:02:40]} 11. Nf4 {[%clk 0:02:38]}  Nxc3 {[%clk 0:02:12]} 12. bxc3 {[%clk 0:02:39]}  Bf5 {[%clk 0:02:09]} 13. Nxh5 {[%clk 0:02:25]}  Nb6 {[%clk 0:01:56]} 14. Bb3 {[%clk 0:02:17]}  Qg5 {[%clk 0:01:49]} 15. Ng3 {[%clk 0:02:14]}  Bd6 {[%clk 0:01:46]} 16. c4 {[%clk 0:02:07]}  Bf4 {[%clk 0:01:37]} 17. Qf3 {[%clk 0:02:01]}  Rd8 {[%clk 0:01:19]} 18. Rad1 {[%clk 0:01:56]}  Bg6 {[%clk 0:01:12]} 19. Rfe1 {[%clk 0:01:47]}  O-O {[%clk 0:01:11]} 20. Kh1 {[%clk 0:01:41]}  Bxg3 {[%clk 0:01:03]} 21. Qxg3 {[%clk 0:01:42]}  Qxg3 {[%clk 0:01:02]} 22. Bxg3 {[%clk 0:01:43]}  Rd7 {[%clk 0:01:00]} 23. Bh4 {[%clk 0:01:32]}  a5 {[%clk 0:00:49]} 24. a4 {[%clk 0:01:22]}  Re8 {[%clk 0:00:33]} 25. Re5 {[%clk 0:01:14]}  Ra8 {[%clk 0:00:27]} 26. g4 {[%clk 0:01:14]}  f6 {[%clk 0:00:21]} 27. Rxe6 {[%clk 0:01:05]}  Bf7 {[%clk 0:00:22]} 28. Re3 {[%clk 0:00:16]}  Bxc4 {[%clk 0:00:19]} 29. Bxc4+ {[%clk 0:00:09]}  Nxc4 {[%clk 0:00:20]} 30. Rb3 {[%clk 0:00:10]}  Rad8 {[%clk 0:00:16]} 31. Rb6 {[%clk 0:00:00]}  Nxb6 {[%clk 0:00:16]} 0-1

[Event "December 5 Early 2023"]
[Site "https://www.chess.com"]
[Date "2023.12.05"]
[Round "6"]
[White "Hambleton, Aman"]
[Black "Pham, Le Thao Nguyen"]
[Result "1-0"]
[Board "72"]
[TimeControl "180+1"]
[WhiteFideId "2606577"]
[BlackFideId "12401226"]
[WhiteElo "2703"]
[BlackElo "2535"]
[WhiteTeam "CAN"]
[BlackTeam "VIE"]
[WhiteClock "0:00:03"]
[BlackClock "0:00:08"]

1. d4 {[%clk 0:03:00]}  d5 {[%clk 0:02:58]} 2. Bf4 {[%clk 0:03:00]}  c5 {[%clk 0:02:51]} 3. e3 {[%clk 0:02:59]}  cxd4 {[%clk 0:02:51]} 4. exd4 {[%clk 0:03:00]}  Nc6 {[%clk 0:02:51]} 5. c3 {[%clk 0:03:00]}  Nf6 {[%clk 0:02:48]} 6. Bd3 {[%clk 0:02:50]}  Bg4 {[%clk 0:02:48]} 7. Qb3 {[%clk 0:02:50]}  Qc8 {[%clk 0:02:37]} 8. Nd2 {[%clk 0:02:49]}  e6 {[%clk 0:02:29]} 9. Ngf3 {[%clk 0:02:41]}  Be7 {[%clk 0:02:29]} 10. O-O {[%clk 0:02:41]}  O-O {[%clk 0:02:29]} 11. Rfe1 {[%clk 0:02:37]}  Bh5 {[%clk 0:02:29]} 12. a4 {[%clk 0:02:28]}  Na5 {[%clk 0:02:16]} 13. Qc2 {[%clk 0:02:28]}  Bg6 {[%clk 0:02:16]} 14. Bxg6 {[%clk 0:02:24]}  hxg6 {[%clk 0:02:17]} 15. Ne5 {[%clk 0:02:23]}  Nd7 {[%clk 0:02:12]} 16. Nd3 {[%clk 0:01:54]}  Nc4 {[%clk 0:02:10]} 17. Nf3 {[%clk 0:01:54]}  Re8 {[%clk 0:02:06]} 18. g3 {[%clk 0:01:53]}  a5 {[%clk 0:01:49]} 19. h4 {[%clk 0:01:50]}  Qc6 {[%clk 0:01:43]} 20. Kg2 {[%clk 0:01:38]}  b5 {[%clk 0:01:35]} 21. axb5 {[%clk 0:01:15]}  Qxb5 {[%clk 0:01:36]} 22. Rh1 {[%clk 0:01:15]}  Nf6 {[%clk 0:01:30]} 23. Ra2 {[%clk 0:00:20]}  Rec8 {[%clk 0:01:20]} 24. Bg5 {[%clk 0:00:13]}  Ng4 {[%clk 0:01:16]} 25. Qe2 {[%clk 0:00:03]}  Bf8 {[%clk 0:01:08]} 26. h5 {[%clk 0:00:02]}  gxh5 {[%clk 0:01:02]} 27. Rxh5 {[%clk 0:00:03]}  Qd7 {[%clk 0:00:57]} 28. Ra1 {[%clk 0:00:03]}  f5 {[%clk 0:00:54]} 29. Rah1 {[%clk 0:00:02]}  Bd6 {[%clk 0:00:50]} 30. R1h4 {[%clk 0:00:02]}  Kf7 {[%clk 0:00:47]} 31. Bf4 {[%clk 0:00:02]}  Rab8 {[%clk 0:00:33]} 32. Ng5+ {[%clk 0:00:02]}  Kf6 {[%clk 0:00:26]} 33. Rh7 {[%clk 0:00:02]}  Rg8 {[%clk 0:00:21]} 34. Bxd6 {[%clk 0:00:02]}  Qxd6 {[%clk 0:00:20]} 35. Nf3 {[%clk 0:00:02]}  a4 {[%clk 0:00:17]} 36. Rxg4 {[%clk 0:00:02]}  fxg4 {[%clk 0:00:16]} 37. Nfe5 {[%clk 0:00:03]}  Ke7 {[%clk 0:00:14]} 38. Qxg4 {[%clk 0:00:03]}  Nxb2 {[%clk 0:00:13]} 39. Qg5+ {[%clk 0:00:03]}  Kf8 {[%clk 0:00:12]} 40. Qf4+ {[%clk 0:00:03]}  Ke8 {[%clk 0:00:11]} 41. Qf7+ {[%clk 0:00:04]}  Kd8 {[%clk 0:00:11]} 42. Qxg8+ {[%clk 0:00:04]}  Kc7 {[%clk 0:00:12]} 43. Qxg7+ {[%clk 0:00:04]}  Kb6 {[%clk 0:00:12]} 44. Qa7+ {[%clk 0:00:03]}  Kb5 {[%clk 0:00:12]} 45. Rb7+ {[%clk 0:00:03]}  Rxb7 {[%clk 0:00:12]} 46. Qxb7+ {[%clk 0:00:04]}  Ka5 {[%clk 0:00:08]} 47. Nc6+ {[%clk 0:00:03]} 1-0

[Event "December 5 Early 2023"]
[Site "https://www.chess.com"]
[Date "2023.12.05"]
[Round "6"]
[White "Andreev, Konstantin"]
[Black "Paltrinieri, Nicholas"]
[Result "1-0"]
[Board "74"]
[TimeControl "180+1"]
[WhiteFideId "24239305"]
[BlackFideId "828262"]
[WhiteElo "2526"]
[BlackElo "2695"]
[WhiteTeam "ITA"]
[BlackTeam "ITA"]
[WhiteClock "0:00:15"]
[BlackClock "0:00:09"]

1. e4 {[%clk 0:02:49]}  g6 {[%clk 0:02:55]} 2. d4 {[%clk 0:02:48]}  Bg7 {[%clk 0:02:56]} 3. Nc3 {[%clk 0:02:48]}  d6 {[%clk 0:02:57]} 4. h4 {[%clk 0:02:48]}  h5 {[%clk 0:02:55]} 5. Be3 {[%clk 0:02:49]}  a6 {[%clk 0:02:55]} 6. f3 {[%clk 0:02:49]}  b5 {[%clk 0:02:54]} 7. Qd2 {[%clk 0:02:50]}  Nd7 {[%clk 0:02:55]} 8. O-O-O {[%clk 0:02:51]}  Bb7 {[%clk 0:02:55]} 9. Nh3 {[%clk 0:02:51]}  e6 {[%clk 0:02:55]} 10. Ng5 {[%clk 0:02:50]}  Ngf6 {[%clk 0:02:56]} 11. Ne2 {[%clk 0:02:49]}  Qe7 {[%clk 0:02:57]} 12. Nf4 {[%clk 0:02:49]}  Nb6 {[%clk 0:02:57]} 13. Kb1 {[%clk 0:02:48]}  O-O-O {[%clk 0:02:54]} 14. g3 {[%clk 0:02:48]}  Kb8 {[%clk 0:02:53]} 15. Qf2 {[%clk 0:02:46]}  d5 {[%clk 0:02:51]} 16. e5 {[%clk 0:02:45]}  Nfd7 {[%clk 0:02:48]} 17. g4 {[%clk 0:02:45]}  hxg4 {[%clk 0:02:28]} 18. fxg4 {[%clk 0:02:46]}  Rc8 {[%clk 0:02:26]} 19. Bd3 {[%clk 0:02:43]}  Nc4 {[%clk 0:02:24]} 20. Bc1 {[%clk 0:02:36]}  c5 {[%clk 0:02:24]} 21. dxc5 {[%clk 0:02:36]}  Nxc5 {[%clk 0:02:24]} 22. Bxc4 {[%clk 0:02:29]}  dxc4 {[%clk 0:02:23]} 23. Rhe1 {[%clk 0:02:11]}  Bh6 {[%clk 0:02:10]} 24. Nfh3 {[%clk 0:02:07]}  Bxg5 {[%clk 0:02:00]} 25. Nxg5 {[%clk 0:02:07]}  Rc7 {[%clk 0:01:56]} 26. Rd6 {[%clk 0:02:01]}  Bd5 {[%clk 0:01:50]} 27. Bf4 {[%clk 0:01:39]}  Kb7 {[%clk 0:01:43]} 28. Be3 {[%clk 0:01:37]}  Na4 {[%clk 0:01:41]} 29. Rf1 {[%clk 0:01:32]}  b4 {[%clk 0:01:24]} 30. Bd4 {[%clk 0:01:14]}  b3 {[%clk 0:01:21]} 31. axb3 {[%clk 0:01:10]}  cxb3 {[%clk 0:01:21]} 32. c3 {[%clk 0:01:06]}  Rf8 {[%clk 0:01:10]} 33. Qf4 {[%clk 0:01:04]}  Nc5 {[%clk 0:01:03]} 34. Bxc5 {[%clk 0:01:04]}  Rxc5 {[%clk 0:01:03]} 35. Qb4+ {[%clk 0:01:02]}  Rb5 {[%clk 0:00:54]} 36. Rb6+ {[%clk 0:01:01]}  Kxb6 {[%clk 0:00:54]} 37. Qxe7 {[%clk 0:01:01]}  Rc8 {[%clk 0:00:51]} 38. Rxf7 {[%clk 0:00:59]}  Rc4 {[%clk 0:00:48]} 39. Nxe6 {[%clk 0:00:54]}  Be4+ {[%clk 0:00:42]} 40. Kc1 {[%clk 0:00:49]}  Rd5 {[%clk 0:00:43]} 41. Qb7+ {[%clk 0:00:38]}  Ka5 {[%clk 0:00:42]} 42. Rc7 {[%clk 0:00:36]}  Bf3 {[%clk 0:00:12]} 43. Nd4 {[%clk 0:00:17]}  Rdxd4 {[%clk 0:00:12]} 44. Qxf3 {[%clk 0:00:17]}  Rxc7 {[%clk 0:00:12]} 45. e6 {[%clk 0:00:15]}  Rdc4 {[%clk 0:00:11]} 46. Qe3 {[%clk 0:00:14]}  Re7 {[%clk 0:00:09]} 47. Qe5+ {[%clk 0:00:14]}  Kb6 {[%clk 0:00:10]} 48. Qd6+ {[%clk 0:00:14]}  Rc6 {[%clk 0:00:10]} 49. Qxe7 {[%clk 0:00:14]}  a5 {[%clk 0:00:11]} 50. Qd8+ {[%clk 0:00:14]}  Kc5 {[%clk 0:00:09]} 51. e7 {[%clk 0:00:15]} 1-0

[Event "December 5 Early 2023"]
[Site "https://www.chess.com"]
[Date "2023.12.05"]
[Round "6"]
[White "Nigalidze, Gaioz"]
[Black "Yashmetov, Mikhail"]
[Result "1-0"]
[Board "75"]
[TimeControl "180+1"]
[WhiteFideId "13603078"]
[BlackFideId "24198900"]
[WhiteElo "2690"]
[BlackElo "2521"]
[WhiteTeam "GEO"]
[BlackTeam "RUS"]
[WhiteClock "0:01:04"]
[BlackClock "0:00:00"]

1. e4 {[%clk 0:02:44]}  c6 {[%clk 0:02:58]} 2. d4 {[%clk 0:02:44]}  d5 {[%clk 0:02:58]} 3. exd5 {[%clk 0:02:42]}  cxd5 {[%clk 0:02:59]} 4. Nf3 {[%clk 0:02:42]}  Nf6 {[%clk 0:02:58]} 5. Nc3 {[%clk 0:02:40]}  Nc6 {[%clk 0:02:57]} 6. Be2 {[%clk 0:02:37]}  g6 {[%clk 0:02:54]} 7. O-O {[%clk 0:02:34]}  Bg7 {[%clk 0:02:54]} 8. h3 {[%clk 0:02:28]}  O-O {[%clk 0:02:54]} 9. a3 {[%clk 0:02:20]}  Ne4 {[%clk 0:02:53]} 10. Nb1 {[%clk 0:02:14]}  Qb6 {[%clk 0:02:42]} 11. c3 {[%clk 0:02:12]}  Bf5 {[%clk 0:02:37]} 12. Nbd2 {[%clk 0:02:12]}  Rad8 {[%clk 0:02:36]} 13. Re1 {[%clk 0:02:12]}  e5 {[%clk 0:02:32]} 14. Nb3 {[%clk 0:02:09]}  a5 {[%clk 0:02:22]} 15. a4 {[%clk 0:02:09]}  exd4 {[%clk 0:02:15]} 16. Nbxd4 {[%clk 0:02:06]}  Nxd4 {[%clk 0:02:13]} 17. Nxd4 {[%clk 0:02:05]}  Bxd4 {[%clk 0:02:04]} 18. Qxd4 {[%clk 0:01:59]}  Qxd4 {[%clk 0:01:59]} 19. cxd4 {[%clk 0:01:59]}  Rfe8 {[%clk 0:01:57]} 20. Bb5 {[%clk 0:01:55]}  Bd7 {[%clk 0:01:57]} 21. Bd3 {[%clk 0:01:54]}  Nd6 {[%clk 0:01:50]} 22. Bg5 {[%clk 0:01:50]}  Rxe1+ {[%clk 0:01:46]} 23. Rxe1 {[%clk 0:01:49]}  Re8 {[%clk 0:01:39]} 24. Rxe8+ {[%clk 0:01:48]}  Bxe8 {[%clk 0:01:39]} 25. Bd8 {[%clk 0:01:48]}  Bxa4 {[%clk 0:01:32]} 26. Bxa5 {[%clk 0:01:47]}  Bb5 {[%clk 0:01:26]} 27. Bc2 {[%clk 0:01:45]}  Nc4 {[%clk 0:01:22]} 28. Bc3 {[%clk 0:01:43]}  Kf8 {[%clk 0:01:18]} 29. Bb3 {[%clk 0:01:40]}  Ke7 {[%clk 0:01:18]} 30. Bb4+ {[%clk 0:01:39]}  Ke6 {[%clk 0:01:17]} 31. Bc3 {[%clk 0:01:39]}  h5 {[%clk 0:01:14]} 32. f3 {[%clk 0:01:38]}  Nd6 {[%clk 0:01:13]} 33. g4 {[%clk 0:01:36]}  Bc4 {[%clk 0:01:10]} 34. Bc2 {[%clk 0:01:32]}  hxg4 {[%clk 0:01:07]} 35. hxg4 {[%clk 0:01:31]}  Nb5 {[%clk 0:01:02]} 36. Kf2 {[%clk 0:01:31]}  f5 {[%clk 0:00:59]} 37. gxf5+ {[%clk 0:01:30]}  gxf5 {[%clk 0:01:00]} 38. Ke3 {[%clk 0:01:31]}  Bf1 {[%clk 0:00:49]} 39. Kf4 {[%clk 0:01:21]}  Bh3 {[%clk 0:00:41]} 40. Kg5 {[%clk 0:01:21]}  Nd6 {[%clk 0:00:36]} 41. Bb4 {[%clk 0:01:16]}  Nc4 {[%clk 0:00:34]} 42. b3 {[%clk 0:01:14]}  Ne3 {[%clk 0:00:32]} 43. Bd3 {[%clk 0:01:14]}  Bf1 {[%clk 0:00:27]} 44. Bb1 {[%clk 0:01:14]}  Be2 {[%clk 0:00:22]} 45. Kf4 {[%clk 0:01:13]}  Ng2+ {[%clk 0:00:19]} 46. Kg3 {[%clk 0:01:13]}  Bd1 {[%clk 0:00:04]} 47. Kxg2 {[%clk 0:01:10]}  Bxb3 {[%clk 0:00:05]} 48. Kg3 {[%clk 0:01:10]}  Bd1 {[%clk 0:00:04]} 49. Kf4 {[%clk 0:01:10]}  Kf6 {[%clk 0:00:05]} 50. Bxf5 {[%clk 0:01:09]}  Bxf3 {[%clk 0:00:06]} 51. Kxf3 {[%clk 0:01:08]}  Kxf5 {[%clk 0:00:07]} 52. Bc5 {[%clk 0:01:06]}  b5 {[%clk 0:00:07]} 53. Bb4 {[%clk 0:01:04]}  Kg5 {[%clk 0:00:08]} 54. Ke3 {[%clk 0:01:04]}  Kg4 {[%clk 0:00:08]} 55. Kd3 {[%clk 0:01:04]}  Kf3 {[%clk 0:00:08]} 56. Kc3 {[%clk 0:01:04]}  Ke3 {[%clk 0:00:08]} 57. Bc5 {[%clk 0:01:05]}  Ke4 {[%clk 0:00:00]} 58. Kb4 {[%clk 0:01:04]} 1-0

[Event "December 5 Early 2023"]
[Site "https://www.chess.com"]
[Date "2023.12.05"]
[Round "6"]
[White "Devaev, Alexander"]
[Black "Danielyan, Vahe"]
[Result "1/2-1/2"]
[Board "76"]
[TimeControl "180+1"]
[WhiteFideId "4169395"]
[BlackFideId "13304828"]
[WhiteElo "2518"]
[BlackElo "2681"]
[WhiteTeam "RUS"]
[BlackTeam "ARM"]
[WhiteClock "0:00:11"]
[BlackClock "0:00:54"]

1. d4 {[%clk 0:03:00]}  Nf6 {[%clk 0:02:59]} 2. c4 {[%clk 0:03:01]}  e6 {[%clk 0:02:59]} 3. Nc3 {[%clk 0:03:02]}  Bb4 {[%clk 0:02:57]} 4. e3 {[%clk 0:03:02]}  O-O {[%clk 0:02:56]} 5. Bd3 {[%clk 0:03:03]}  Re8 {[%clk 0:02:55]} 6. Ne2 {[%clk 0:03:01]}  d5 {[%clk 0:02:54]} 7. a3 {[%clk 0:03:01]}  Bf8 {[%clk 0:02:53]} 8. b3 {[%clk 0:02:58]}  b6 {[%clk 0:02:53]} 9. Bb2 {[%clk 0:02:57]}  Bb7 {[%clk 0:02:53]} 10. O-O {[%clk 0:02:58]}  Nbd7 {[%clk 0:02:52]} 11. Rc1 {[%clk 0:02:58]}  c5 {[%clk 0:02:52]} 12. cxd5 {[%clk 0:02:57]}  Nxd5 {[%clk 0:02:51]} 13. Nxd5 {[%clk 0:02:39]}  Bxd5 {[%clk 0:02:52]} 14. Qc2 {[%clk 0:02:39]}  g6 {[%clk 0:02:41]} 15. Rfd1 {[%clk 0:02:30]}  Rc8 {[%clk 0:02:39]} 16. Ba6 {[%clk 0:02:29]}  Rc6 {[%clk 0:02:31]} 17. Bb5 {[%clk 0:02:05]}  Rc8 {[%clk 0:02:29]} 18. Ba6 {[%clk 0:02:04]}  Rc7 {[%clk 0:02:25]} 19. e4 {[%clk 0:01:39]}  Ba8 {[%clk 0:02:17]} 20. dxc5 {[%clk 0:01:39]}  Bxc5 {[%clk 0:02:14]} 21. Qd3 {[%clk 0:01:22]}  Qh4 {[%clk 0:02:12]} 22. Ng3 {[%clk 0:01:13]}  Nf6 {[%clk 0:01:58]} 23. Bd4 {[%clk 0:00:13]}  Rd7 {[%clk 0:01:38]} 24. Bxf6 {[%clk 0:00:12]}  Bxf2+ {[%clk 0:01:08]} 25. Kxf2 {[%clk 0:00:13]}  Qxf6+ {[%clk 0:01:09]} 26. Qf3 {[%clk 0:00:13]}  Qb2+ {[%clk 0:01:09]} 27. Be2 {[%clk 0:00:14]}  Rxd1 {[%clk 0:01:04]} 28. Rxd1 {[%clk 0:00:14]}  Qxa3 {[%clk 0:01:05]} 29. h4 {[%clk 0:00:12]}  Qe7 {[%clk 0:01:04]} 30. h5 {[%clk 0:00:12]}  Rd8 {[%clk 0:01:03]} 31. Rxd8+ {[%clk 0:00:10]}  Qxd8 {[%clk 0:01:04]} 32. h6 {[%clk 0:00:11]}  Qg5 {[%clk 0:01:00]} 33. Qc3 {[%clk 0:00:11]}  Qxh6 {[%clk 0:00:59]} 34. Qc8+ {[%clk 0:00:06]}  Qf8 {[%clk 0:00:59]} 35. Qc7 {[%clk 0:00:07]}  Qc5+ {[%clk 0:00:57]} 36. Qxc5 {[%clk 0:00:07]}  bxc5 {[%clk 0:00:58]} 37. e5 {[%clk 0:00:06]}  Kg7 {[%clk 0:00:57]} 38. Bf3 {[%clk 0:00:06]}  Bxf3 {[%clk 0:00:57]} 39. Kxf3 {[%clk 0:00:07]}  f6 {[%clk 0:00:56]} 40. Ne4 {[%clk 0:00:07]}  fxe5 {[%clk 0:00:56]} 41. Nxc5 {[%clk 0:00:08]}  Kf6 {[%clk 0:00:57]} 42. Ke4 {[%clk 0:00:08]}  h5 {[%clk 0:00:57]} 43. Na6 {[%clk 0:00:06]}  Kg5 {[%clk 0:00:56]} 44. Nc7 {[%clk 0:00:07]}  Kg4 {[%clk 0:00:55]} 45. Nxe6 {[%clk 0:00:07]}  Kg3 {[%clk 0:00:55]} 46. Kxe5 {[%clk 0:00:07]}  Kxg2 {[%clk 0:00:56]} 47. Nf4+ {[%clk 0:00:08]}  Kf3 {[%clk 0:00:49]} 48. Nxg6 {[%clk 0:00:08]}  Ke3 {[%clk 0:00:50]} 49. Kd5 {[%clk 0:00:09]}  Kd3 {[%clk 0:00:51]} 50. b4 {[%clk 0:00:10]}  Kc3 {[%clk 0:00:51]} 51. Kc5 {[%clk 0:00:10]}  Kb3 {[%clk 0:00:51]} 52. Kb5 {[%clk 0:00:10]}  Ka3 {[%clk 0:00:51]} 53. Nh4 {[%clk 0:00:10]}  Kb3 {[%clk 0:00:51]} 54. Nf5 {[%clk 0:00:11]}  Kc3 {[%clk 0:00:51]} 55. Ka5 {[%clk 0:00:10]}  Kc4 {[%clk 0:00:51]} 56. b5 {[%clk 0:00:10]}  Kc5 {[%clk 0:00:52]} 57. Nh4 {[%clk 0:00:09]}  Kc4 {[%clk 0:00:52]} 58. Ka6 {[%clk 0:00:09]}  Kb4 {[%clk 0:00:51]} 59. Nf5 {[%clk 0:00:10]}  Kc5 {[%clk 0:00:52]} 60. Nh4 {[%clk 0:00:09]}  Kb4 {[%clk 0:00:52]} 61. Nf3 {[%clk 0:00:10]}  Kc5 {[%clk 0:00:52]} 62. Ka5 {[%clk 0:00:10]}  Kc4 {[%clk 0:00:52]} 63. Ne5+ {[%clk 0:00:10]}  Kc5 {[%clk 0:00:53]} 64. Nf3 {[%clk 0:00:09]}  Kc4 {[%clk 0:00:53]} 65. Ka6 {[%clk 0:00:09]}  Kc5 {[%clk 0:00:53]} 66. Nh4 {[%clk 0:00:10]}  Kc4 {[%clk 0:00:54]} 67. Ng6 {[%clk 0:00:11]}  Kc5 {[%clk 0:00:54]} 68. Nh4 {[%clk 0:00:11]} 1/2-1/2

[Event "December 5 Early 2023"]
[Site "https://www.chess.com"]
[Date "2023.12.05"]
[Round "6"]
[White "Nagare Kaivalya Sandip"]
[Black "Sreyas Payyappat"]
[Result "1-0"]
[Board "77"]
[TimeControl "180+1"]
[WhiteFideId "25957929"]
[BlackFideId "46674969"]
[WhiteElo "2667"]
[BlackElo "2506"]
[WhiteTeam "IND"]
[BlackTeam "IND"]
[WhiteClock "0:02:08"]
[BlackClock "0:00:03"]

1. d4 {[%clk 0:03:00]}  Nf6 {[%clk 0:01:10]} 2. Nf3 {[%clk 0:03:00]}  c5 {[%clk 0:01:09]} 3. d5 {[%clk 0:02:58]}  g6 {[%clk 0:01:06]} 4. c4 {[%clk 0:02:51]}  Bg7 {[%clk 0:00:57]} 5. Nc3 {[%clk 0:02:51]}  O-O {[%clk 0:00:57]} 6. e4 {[%clk 0:02:50]}  d6 {[%clk 0:00:58]} 7. Be2 {[%clk 0:02:43]}  e6 {[%clk 0:00:57]} 8. O-O {[%clk 0:02:43]}  exd5 {[%clk 0:00:56]} 9. exd5 {[%clk 0:02:43]}  Bg4 {[%clk 0:00:56]} 10. Bf4 {[%clk 0:02:42]}  Re8 {[%clk 0:00:56]} 11. h3 {[%clk 0:02:41]}  Bf5 {[%clk 0:00:56]} 12. Bd3 {[%clk 0:02:36]}  Bxd3 {[%clk 0:00:30]} 13. Qxd3 {[%clk 0:02:35]}  Nbd7 {[%clk 0:00:31]} 14. Bxd6 {[%clk 0:02:35]}  Qb6 {[%clk 0:00:31]} 15. Bh2 {[%clk 0:02:34]}  Qxb2 {[%clk 0:00:29]} 16. Rab1 {[%clk 0:02:30]}  Qa3 {[%clk 0:00:29]} 17. Rb3 {[%clk 0:02:28]}  Qa6 {[%clk 0:00:27]} 18. Nb5 {[%clk 0:02:29]}  Qxa2 {[%clk 0:00:16]} 19. Nc7 {[%clk 0:02:22]}  Nb6 {[%clk 0:00:15]} 20. Nxe8 {[%clk 0:02:17]}  Rxe8 {[%clk 0:00:15]} 21. Be5 {[%clk 0:02:09]}  Nfd7 {[%clk 0:00:12]} 22. Bxg7 {[%clk 0:02:08]}  Kxg7 {[%clk 0:00:13]} 23. Qc3+ {[%clk 0:02:08]}  Kg8 {[%clk 0:00:12]} 24. Ra1 {[%clk 0:02:09]}  Qe2 {[%clk 0:00:03]} 25. Re1 {[%clk 0:02:08]} 1-0